[Event "*** MasterClass Titled Tuesday Blitz"]
[Site "Chess.com"]
[Date "2017.10.03"]
[Round "5"]
[White "BillCoe"]
[Black "chesstatour"]
[Result "1-0"]
[WhiteElo "1957"]
[BlackElo "1835"]
[TimeControl "180+2"]
[EndTime "14:07:58 PDT"]
[Termination "BillCoe won on time"]

1. e4 {[%clk 0:03:01.9]} 1... c6 {[%clk 0:02:58.8]} 2. d4 {[%clk 0:03:01.4]}
2... d5 {[%clk 0:03:00.7]} 3. Nc3 {[%clk 0:03:02.7]} 3... dxe4 {[%clk
0:02:59.9]} 4. Nxe4 {[%clk 0:03:04.6]} 4... Nf6 {[%clk 0:03:01.5]} 5. Nxf6+
{[%clk 0:03:02.6]} 5... gxf6 {[%clk 0:03:03.4]} 6. Nf3 {[%clk 0:03:03.8]} 6...
Bg4 {[%clk 0:03:03.9]} 7. Be2 {[%clk 0:03:04.4]} 7... e6 {[%clk 0:03:04.4]} 8.
Be3 {[%clk 0:03:05.7]} 8... Nd7 {[%clk 0:02:59.7]} 9. Qd2 {[%clk 0:03:06.3]}
9... Bd6 {[%clk 0:03:00.3]} 10. h3 {[%clk 0:03:07.1]} 10... Bh5 {[%clk
0:03:00.6]} 11. g4 {[%clk 0:03:06.1]} 11... Bg6 {[%clk 0:03:01.5]} 12. Bd3
{[%clk 0:03:06.8]} 12... Qc7 {[%clk 0:02:23.4]} 13. h4 {[%clk 0:03:03.1]} 13...
O-O-O {[%clk 0:02:19]} 14. O-O-O {[%clk 0:02:50.4]} 14... Bxd3 {[%clk
0:01:31.8]} 15. Qxd3 {[%clk 0:02:50.2]} 15... Bf4 {[%clk 0:01:33.1]} 16. Kb1
{[%clk 0:02:32.2]} 16... Nb6 {[%clk 0:01:26.1]} 17. Qe4 {[%clk 0:02:16.4]} 17...
Bxe3 {[%clk 0:00:58.4]} 18. fxe3 {[%clk 0:02:12.5]} 18... Nc4 {[%clk 0:00:52.9]}
19. b3 {[%clk 0:02:00.2]} 19... f5 {[%clk 0:00:39.8]} 20. Qd3 {[%clk 0:01:54.8]}
20... Nd6 {[%clk 0:00:40]} 21. gxf5 {[%clk 0:01:46.1]} 21... Nxf5 {[%clk
0:00:41.9]} 22. Ne5 {[%clk 0:01:40]} 22... c5 {[%clk 0:00:26.5]} 23. c3 {[%clk
0:01:39.8]} 23... Kb8 {[%clk 0:00:19.9]} 24. e4 {[%clk 0:01:35.1]} 24... Nd6
{[%clk 0:00:06.6]} 25. Rhf1 {[%clk 0:01:26.7]} 25... cxd4 {[%clk 0:00:05.6]} 26.
cxd4 {[%clk 0:01:26.7]} 26... Rhf8 {[%clk 0:00:03.6]} 27. Rc1 {[%clk 0:01:25.8]}
27... Qb6 {[%clk 0:00:04.7]} 28. Nc4 {[%clk 0:01:17.6]} 28... Nxc4 {[%clk
0:00:05]} 29. Rxc4 {[%clk 0:01:18]} 29... Rd7 {[%clk 0:00:05.8]} 30. Rfc1 {[%clk
0:01:16.5]} 30... Rfd8 {[%clk 0:00:06.7]} 31. Qc3 {[%clk 0:01:16.1]} 31... a6
{[%clk 0:00:06.5]} 32. Rc8+ {[%clk 0:01:06.6]} 32... Ka7 {[%clk 0:00:07.1]} 33.
Rxd8 {[%clk 0:01:03.6]} 33... Rxd8 {[%clk 0:00:07.9]} 34. Rd1 {[%clk 0:01:00.9]}
34... Qc6 {[%clk 0:00:05.7]} 35. Qd3 {[%clk 0:00:55.6]} 35... b5 {[%clk
0:00:05.2]} 36. d5 {[%clk 0:00:55.2]} 36... Qb6 {[%clk 0:00:05.7]} 37. d6 {[%clk
0:00:52.7]} 37... Rd7 {[%clk 0:00:03.6]} 38. e5 {[%clk 0:00:53]} 38... Qc5
{[%clk 0:00:03.1]} 39. Qd4 {[%clk 0:00:51.2]} 39... Qxd4 {[%clk 0:00:03.8]} 40.
Rxd4 {[%clk 0:00:52.4]} 40... Kb6 {[%clk 0:00:05.4]} 41. Kc2 {[%clk 0:00:49]}
41... a5 {[%clk 0:00:05.3]} 42. Kd3 {[%clk 0:00:49.2]} 42... Kb7 {[%clk
0:00:05.3]} 43. Rg4 {[%clk 0:00:46.7]} 43... Kc6 {[%clk 0:00:04.2]} 44. Ke4
{[%clk 0:00:46.6]} 44... f5+ {[%clk 0:00:03.3]} 45. exf6 {[%clk 0:00:46.3]}
45... Kxd6 {[%clk 0:00:02.6]} 46. Rg7 {[%clk 0:00:45.7]} 46... Rd8 {[%clk
0:00:03.8]} 47. Rxh7 {[%clk 0:00:44]} 47... Rf8 {[%clk 0:00:04.8]} 48. Rb7
{[%clk 0:00:39.1]} 48... Rxf6 {[%clk 0:00:03.5]} 49. Rxb5 {[%clk 0:00:39.5]}
49... a4 {[%clk 0:00:04.7]} 50. bxa4 {[%clk 0:00:35]} 50... Rf2 {[%clk
0:00:03.7]} 51. h5 {[%clk 0:00:34.6]} 51... Rxa2 {[%clk 0:00:03.6]} 52. Ra5
{[%clk 0:00:34.5]} 52... Rh2 {[%clk 0:00:03.5]} 53. Kf4 {[%clk 0:00:34.8]} 1-0

[Event "*** MasterClass Titled Tuesday Blitz"]
[Site "Chess.com"]
[Date "2017.10.03"]
[Round "5"]
[White "Gordima"]
[Black "Oleksandr_Bortnyk"]
[Result "1-0"]
[WhiteElo "2589"]
[BlackElo "2818"]
[TimeControl "180+2"]
[EndTime "14:08:10 PDT"]
[Termination "Gordima won on time"]

1. Nf3 {[%clk 0:03:01.2]} 1... Nf6 {[%clk 0:03:00.3]} 2. g3 {[%clk 0:03:02.2]}
2... g6 {[%clk 0:03:01.5]} 3. b3 {[%clk 0:03:03.2]} 3... Bg7 {[%clk 0:03:03.4]}
4. Bb2 {[%clk 0:03:04.8]} 4... O-O {[%clk 0:03:05.3]} 5. Bg2 {[%clk 0:03:06.3]}
5... d5 {[%clk 0:03:05.6]} 6. c4 {[%clk 0:03:07.2]} 6... c6 {[%clk 0:03:06]} 7.
O-O {[%clk 0:03:07.4]} 7... Re8 {[%clk 0:03:07]} 8. d3 {[%clk 0:03:07.7]} 8...
a5 {[%clk 0:03:08.1]} 9. Ba3 {[%clk 0:03:01.6]} 9... e5 {[%clk 0:02:45.6]} 10.
Bb2 {[%clk 0:02:51.2]} 10... d4 {[%clk 0:02:38.6]} 11. Nfd2 {[%clk 0:02:42.4]}
11... Na6 {[%clk 0:02:38.2]} 12. Na3 {[%clk 0:02:43.3]} 12... Bg4 {[%clk
0:02:35.3]} 13. Nc2 {[%clk 0:02:39.9]} 13... Qd7 {[%clk 0:02:35.9]} 14. Re1
{[%clk 0:02:40.3]} 14... Nc5 {[%clk 0:02:36.4]} 15. Qb1 {[%clk 0:02:39.4]} 15...
Rad8 {[%clk 0:02:28.8]} 16. Ba3 {[%clk 0:02:40.3]} 16... b6 {[%clk 0:02:26.9]}
17. Bxc5 {[%clk 0:02:25.5]} 17... bxc5 {[%clk 0:02:28.8]} 18. Qb2 {[%clk
0:02:26.6]} 18... Bh6 {[%clk 0:02:28.2]} 19. Nf1 {[%clk 0:02:07.4]} 19... Bh3
{[%clk 0:02:00.6]} 20. Bxh3 {[%clk 0:01:49.1]} 20... Qxh3 {[%clk 0:02:02.5]} 21.
Qa3 {[%clk 0:01:50.7]} 21... e4 {[%clk 0:01:00.4]} 22. Qxc5 {[%clk 0:01:50.7]}
22... Ng4 {[%clk 0:01:01.4]} 23. Qxc6 {[%clk 0:01:12.9]} 23... Re5 {[%clk
0:00:47.4]} 24. dxe4 {[%clk 0:01:14.2]} 24... Nxh2 {[%clk 0:00:38.1]} 25. Nxh2
{[%clk 0:00:56.9]} 25... Rh5 {[%clk 0:00:39]} 26. e5 {[%clk 0:00:58.1]} 26...
Qxh2+ {[%clk 0:00:39.5]} 27. Kf1 {[%clk 0:00:59.3]} 27... Qh3+ {[%clk
0:00:31.4]} 28. Qg2 {[%clk 0:00:59.8]} 28... Qe6 {[%clk 0:00:26.5]} 29. Rad1
{[%clk 0:00:57.8]} 29... Qxe5 {[%clk 0:00:24.1]} 30. e3 {[%clk 0:00:49.5]} 30...
d3 {[%clk 0:00:24.3]} 31. Nd4 {[%clk 0:00:50.2]} 31... Rxd4 {[%clk 0:00:20]} 32.
exd4 {[%clk 0:00:49.9]} 32... Qxd4 {[%clk 0:00:21.9]} 33. Re8+ {[%clk
0:00:39.8]} 33... Kg7 {[%clk 0:00:22.1]} 34. Qa8 {[%clk 0:00:41.4]} 34... Rh2
{[%clk 0:00:13.1]} 35. Rg8+ {[%clk 0:00:41.8]} 35... Kf6 {[%clk 0:00:14.1]} 36.
Qc6+ {[%clk 0:00:36.2]} 36... Kg5 {[%clk 0:00:11.6]} 37. Qf3 {[%clk 0:00:15.1]}
37... d2 {[%clk 0:00:08.2]} 38. Kg1 {[%clk 0:00:15.7]} 38... Rh5 {[%clk
0:00:08.6]} 39. Qxf7 {[%clk 0:00:10.3]} 39... Kg4 {[%clk 0:00:07]} 40. Qe6+
{[%clk 0:00:08.7]} 40... Rf5 {[%clk 0:00:07.8]} 41. Qe2+ {[%clk 0:00:09.7]}
41... Kh3 {[%clk 0:00:09.2]} 42. Qf1+ {[%clk 0:00:10.2]} 42... Kg4 {[%clk
0:00:10.3]} 43. Qe2+ {[%clk 0:00:11.1]} 43... Kh3 {[%clk 0:00:11.3]} 44. Re8
{[%clk 0:00:09.1]} 44... Bf4 {[%clk 0:00:04.2]} 45. Re4 {[%clk 0:00:09.6]} 45...
Re5 {[%clk 0:00:04.5]} 46. Qf1+ {[%clk 0:00:09.9]} 46... Kg4 {[%clk 0:00:05.8]}
47. Rxd4 {[%clk 0:00:11.3]} 1-0

[Event "*** MasterClass Titled Tuesday Blitz"]
[Site "Chess.com"]
[Date "2017.10.03"]
[Round "5"]
[White "MaxLeto"]
[Black "motivated_bishop"]
[Result "1-0"]
[WhiteElo "2335"]
[BlackElo "2150"]
[TimeControl "180+2"]
[EndTime "14:08:10 PDT"]
[Termination "MaxLeto won by resignation"]

1. b3 {[%clk 0:02:59.9]} 1... Nf6 {[%clk 0:02:59.6]} 2. Bb2 {[%clk 0:03:00.9]}
2... e6 {[%clk 0:03:00.7]} 3. e3 {[%clk 0:03:01.5]} 3... Be7 {[%clk 0:03:02]} 4.
Nf3 {[%clk 0:03:03]} 4... d5 {[%clk 0:03:03.2]} 5. Be2 {[%clk 0:03:04.3]} 5...
O-O {[%clk 0:03:04.4]} 6. O-O {[%clk 0:03:05.2]} 6... c5 {[%clk 0:03:05.6]} 7.
d4 {[%clk 0:02:55]} 7... cxd4 {[%clk 0:03:03.7]} 8. Nxd4 {[%clk 0:02:56.2]} 8...
Nc6 {[%clk 0:02:58.7]} 9. Nxc6 {[%clk 0:02:56.6]} 9... bxc6 {[%clk 0:02:59.4]}
10. c4 {[%clk 0:02:58.5]} 10... a5 {[%clk 0:02:56.7]} 11. Nc3 {[%clk 0:02:59.3]}
11... Ba6 {[%clk 0:02:54.6]} 12. Qc2 {[%clk 0:02:47.1]} 12... Nd7 {[%clk
0:02:35.4]} 13. Rfd1 {[%clk 0:02:45.1]} 13... Qc8 {[%clk 0:02:27.9]} 14. Na4
{[%clk 0:02:44]} 14... Qb7 {[%clk 0:02:24]} 15. Rac1 {[%clk 0:02:39.2]} 15...
Rfc8 {[%clk 0:02:17.5]} 16. Bd3 {[%clk 0:02:31.7]} 16... h6 {[%clk 0:02:12.5]}
17. Qe2 {[%clk 0:02:25.1]} 17... Nb6 {[%clk 0:02:06.4]} 18. Qg4 {[%clk
0:01:49.9]} 18... Bf8 {[%clk 0:02:06.2]} 19. Nc5 {[%clk 0:01:43.8]} 19... f5
{[%clk 0:01:36.1]} 20. Qg6 {[%clk 0:01:19.4]} 20... Bxc5 {[%clk 0:01:35.4]} 21.
Qxe6+ {[%clk 0:00:52.7]} 21... Qf7 {[%clk 0:01:36.2]} 22. cxd5 {[%clk 0:00:44]}
22... Qxe6 {[%clk 0:00:48.3]} 23. dxe6 {[%clk 0:00:45.9]} 23... Be7 {[%clk
0:00:40.9]} 24. Bxf5 {[%clk 0:00:43.9]} 24... Nd5 {[%clk 0:00:29.4]} 25. g3
{[%clk 0:00:17]} 25... Bb7 {[%clk 0:00:18.1]} 26. e4 {[%clk 0:00:15.1]} 26...
Nf6 {[%clk 0:00:19.2]} 27. h4 {[%clk 0:00:09.9]} 27... Rd8 {[%clk 0:00:19.3]}
28. g4 {[%clk 0:00:10.3]} 28... Rxd1+ {[%clk 0:00:18.5]} 29. Rxd1 {[%clk
0:00:12.2]} 29... Rd8 {[%clk 0:00:19.5]} 30. Rxd8+ {[%clk 0:00:06.6]} 30... Bxd8
{[%clk 0:00:21.4]} 31. g5 {[%clk 0:00:05]} 31... hxg5 {[%clk 0:00:22]} 32. hxg5
{[%clk 0:00:06.9]} 32... Ne8 {[%clk 0:00:22.8]} 33. Bg6 {[%clk 0:00:06.4]} 33...
Nc7 {[%clk 0:00:15.9]} 34. Bf7+ {[%clk 0:00:06.6]} 34... Kf8 {[%clk 0:00:17.1]}
35. f4 {[%clk 0:00:06.3]} 35... Bc8 {[%clk 0:00:16.5]} 36. f5 {[%clk 0:00:07.4]}
36... Bxg5 {[%clk 0:00:17.5]} 37. Be5 {[%clk 0:00:07.3]} 37... Ne8 {[%clk
0:00:10.5]} 38. Bc3 {[%clk 0:00:06.1]} 38... Nd6 {[%clk 0:00:06.5]} 39. Bg6
{[%clk 0:00:03.2]} 39... Nxe4 {[%clk 0:00:05.5]} 40. Bxa5 {[%clk 0:00:04.9]}
40... Be3+ {[%clk 0:00:03.6]} 41. Kg2 {[%clk 0:00:05.3]} 41... c5 {[%clk
0:00:04.5]} 42. Kf3 {[%clk 0:00:06.1]} 42... Nf6 {[%clk 0:00:03.5]} 43. Kxe3
{[%clk 0:00:06.5]} 43... Ke7 {[%clk 0:00:04.9]} 44. Bc3 {[%clk 0:00:07.3]} 44...
Nd5+ {[%clk 0:00:05.6]} 45. Kd3 {[%clk 0:00:08.4]} 45... Ba6+ {[%clk 0:00:06.8]}
46. Kc2 {[%clk 0:00:08.5]} 46... Nxc3 {[%clk 0:00:07.5]} 47. Kxc3 {[%clk
0:00:09.8]} 47... Kf6 {[%clk 0:00:08.6]} 48. a3 {[%clk 0:00:09.9]} 48... Be2
{[%clk 0:00:09]} 49. b4 {[%clk 0:00:10.5]} 49... cxb4+ {[%clk 0:00:10.2]} 50.
Kxb4 {[%clk 0:00:12.1]} 50... Ke7 {[%clk 0:00:10.5]} 51. Kc5 {[%clk 0:00:13.5]}
51... Bf1 {[%clk 0:00:11.1]} 52. a4 {[%clk 0:00:14.5]} 52... Be2 {[%clk
0:00:11.9]} 53. a5 {[%clk 0:00:16]} 53... Bf1 {[%clk 0:00:12.2]} 54. Kb6 {[%clk
0:00:17.5]} 54... Be2 {[%clk 0:00:13]} 55. a6 {[%clk 0:00:19]} 55... Bf3 {[%clk
0:00:13.2]} 56. Kc7 {[%clk 0:00:19.6]} 1-0

[Event "*** MasterClass Titled Tuesday Blitz"]
[Site "Chess.com"]
[Date "2017.10.03"]
[Round "5"]
[White "Diwi89"]
[Black "Alexander_Moskalenko"]
[Result "1-0"]
[WhiteElo "2543"]
[BlackElo "2626"]
[TimeControl "180+2"]
[EndTime "14:08:28 PDT"]
[Termination "Diwi89 won on time"]

1. e4 {[%clk 0:03:01.9]} 1... c6 {[%clk 0:02:58.7]} 2. d4 {[%clk 0:03:00.1]}
2... g6 {[%clk 0:02:57.1]} 3. c4 {[%clk 0:02:57.4]} 3... Bg7 {[%clk 0:02:57.2]}
4. Nc3 {[%clk 0:02:58.7]} 4... d6 {[%clk 0:02:54.5]} 5. f4 {[%clk 0:02:56]} 5...
Nf6 {[%clk 0:02:55.2]} 6. Nf3 {[%clk 0:02:56.1]} 6... O-O {[%clk 0:02:56.7]} 7.
Be2 {[%clk 0:02:56.1]} 7... Bg4 {[%clk 0:02:58.2]} 8. O-O {[%clk 0:02:53.9]}
8... Bxf3 {[%clk 0:02:57.8]} 9. Bxf3 {[%clk 0:02:53.9]} 9... e5 {[%clk
0:02:59.4]} 10. fxe5 {[%clk 0:02:45.3]} 10... dxe5 {[%clk 0:03:01.3]} 11. d5
{[%clk 0:02:46.7]} 11... Na6 {[%clk 0:02:57.8]} 12. Be3 {[%clk 0:02:44.4]} 12...
c5 {[%clk 0:02:41.5]} 13. a3 {[%clk 0:02:43.6]} 13... Ne8 {[%clk 0:02:39.7]} 14.
b4 {[%clk 0:02:43]} 14... Nd6 {[%clk 0:02:38.4]} 15. bxc5 {[%clk 0:02:39.7]}
15... Nxc4 {[%clk 0:02:38.9]} 16. Bf2 {[%clk 0:02:41.2]} 16... Bh6 {[%clk
0:02:30.2]} 17. Qd3 {[%clk 0:02:38.6]} 17... Nd2 {[%clk 0:02:31]} 18. Rfd1
{[%clk 0:02:33.8]} 18... Nb3 {[%clk 0:02:31.4]} 19. c6 {[%clk 0:02:18.6]} 19...
Nac5 {[%clk 0:02:28.4]} 20. Qc4 {[%clk 0:02:10.8]} 20... b6 {[%clk 0:02:25.7]}
21. Ra2 {[%clk 0:02:06]} 21... Nd4 {[%clk 0:02:07.8]} 22. Ne2 {[%clk 0:02:06.2]}
22... Ncb3 {[%clk 0:01:52.7]} 23. Rd3 {[%clk 0:01:58.9]} 23... Nxe2+ {[%clk
0:01:48.2]} 24. Rxe2 {[%clk 0:01:58.6]} 24... Nc1 {[%clk 0:01:28.8]} 25. d6
{[%clk 0:01:59.6]} 25... Nxd3 {[%clk 0:01:24]} 26. Qxd3 {[%clk 0:02:01.5]} 26...
Rc8 {[%clk 0:01:25.6]} 27. Qd5 {[%clk 0:02:01.2]} 27... Qg5 {[%clk 0:01:24.3]}
28. Be3 {[%clk 0:01:51.9]} 28... Qh4 {[%clk 0:01:20.6]} 29. Bxh6 {[%clk
0:01:33.9]} 29... Qxh6 {[%clk 0:01:22.5]} 30. Re1 {[%clk 0:01:28.8]} 30... Rfd8
{[%clk 0:01:16.6]} 31. c7 {[%clk 0:01:29.7]} 31... Rd7 {[%clk 0:01:17]} 32. g3
{[%clk 0:01:19.9]} 32... Qf8 {[%clk 0:01:10.1]} 33. Rd1 {[%clk 0:01:19.5]} 33...
Rcxc7 {[%clk 0:01:09.7]} 34. dxc7 {[%clk 0:01:20.3]} 34... Rxd5 {[%clk
0:00:43.5]} 35. Rxd5 {[%clk 0:01:22.2]} 35... Kg7 {[%clk 0:00:43.8]} 36. Bg4
{[%clk 0:01:13]} 36... f5 {[%clk 0:00:44.8]} 37. exf5 {[%clk 0:01:07.6]} 37...
gxf5 {[%clk 0:00:46.7]} 38. Rd7+ {[%clk 0:01:07.1]} 38... Kg6 {[%clk 0:00:41.9]}
39. Bf3 {[%clk 0:00:48.1]} 39... e4 {[%clk 0:00:42.9]} 40. Be2 {[%clk
0:00:47.1]} 40... Qc5+ {[%clk 0:00:42.9]} 41. Kg2 {[%clk 0:00:48.2]} 41... e3
{[%clk 0:00:38.4]} 42. Ba6 {[%clk 0:00:45.7]} 42... Qc6+ {[%clk 0:00:39.1]} 43.
Kf1 {[%clk 0:00:42.9]} 43... Qxd7 {[%clk 0:00:04.9]} 44. c8=Q {[%clk 0:00:43.4]}
44... Qd1+ {[%clk 0:00:05.5]} 45. Kg2 {[%clk 0:00:44.4]} 45... Qd2+ {[%clk
0:00:06]} 46. Kh3 {[%clk 0:00:44]} 46... f4 {[%clk 0:00:06.7]} 47. Qe6+ {[%clk
0:00:44.2]} 47... Kg7 {[%clk 0:00:07.4]} 48. Qe5+ {[%clk 0:00:43.7]} 48... Kg6
{[%clk 0:00:07.6]} 49. Qe6+ {[%clk 0:00:44.7]} 49... Kg7 {[%clk 0:00:08.4]} 50.
gxf4 {[%clk 0:00:46]} 50... Qf2 {[%clk 0:00:08.7]} 51. Qg4+ {[%clk 0:00:45.9]}
51... Kf8 {[%clk 0:00:07.4]} 52. Be2 {[%clk 0:00:47.3]} 52... Ke7 {[%clk
0:00:04]} 53. Qh4+ {[%clk 0:00:46.3]} 53... Ke6 {[%clk 0:00:02.9]} 54. Qxf2
{[%clk 0:00:46.8]} 54... exf2 {[%clk 0:00:04.8]} 55. Kg3 {[%clk 0:00:48.1]}
55... Kf5 {[%clk 0:00:05.4]} 56. Bd3+ {[%clk 0:00:49.3]} 56... Kf6 {[%clk
0:00:06.8]} 57. Kxf2 {[%clk 0:00:50.7]} 57... h6 {[%clk 0:00:08.4]} 58. Kf3
{[%clk 0:00:52]} 58... a5 {[%clk 0:00:08.9]} 59. a4 {[%clk 0:00:51.6]} 59... h5
{[%clk 0:00:09.2]} 60. Ke4 {[%clk 0:00:53]} 60... b5 {[%clk 0:00:11.1]} 61. Bxb5
{[%clk 0:00:53.1]} 1-0

[Event "*** MasterClass Titled Tuesday Blitz"]
[Site "Chess.com"]
[Date "2017.10.03"]
[Round "5"]
[White "Hrant_ChessMood"]
[Black "Kawhi_Leonard2"]
[Result "1-0"]
[WhiteElo "2739"]
[BlackElo "2243"]
[TimeControl "180+2"]
[EndTime "14:08:29 PDT"]
[Termination "Hrant_ChessMood won on time"]

1. d4 {[%clk 0:03:01.9]} 1... Nf6 {[%clk 0:03:00.3]} 2. Nf3 {[%clk 0:03:02.6]}
2... e6 {[%clk 0:03:00.8]} 3. c4 {[%clk 0:03:02.5]} 3... c5 {[%clk 0:03:01.8]}
4. e3 {[%clk 0:03:01.4]} 4... d5 {[%clk 0:03:02.4]} 5. cxd5 {[%clk 0:03:03.3]}
5... exd5 {[%clk 0:03:03]} 6. Bb5+ {[%clk 0:03:04.8]} 6... Nc6 {[%clk
0:03:03.9]} 7. O-O {[%clk 0:03:04.9]} 7... Bd6 {[%clk 0:03:05.1]} 8. dxc5 {[%clk
0:03:05.7]} 8... Bxc5 {[%clk 0:03:05.7]} 9. Nc3 {[%clk 0:03:07.2]} 9... O-O
{[%clk 0:03:05.8]} 10. b3 {[%clk 0:03:08.3]} 10... Qd6 {[%clk 0:03:04.8]} 11.
Bb2 {[%clk 0:03:08.4]} 11... Bg4 {[%clk 0:03:03.2]} 12. Be2 {[%clk 0:03:07.3]}
12... a6 {[%clk 0:03:03.5]} 13. h3 {[%clk 0:03:04.4]} 13... Bh5 {[%clk
0:03:03.8]} 14. Nh4 {[%clk 0:03:01.2]} 14... Bg6 {[%clk 0:03:01.4]} 15. Nxg6
{[%clk 0:03:00.7]} 15... hxg6 {[%clk 0:03:01.6]} 16. Bf3 {[%clk 0:02:40.2]}
16... Rad8 {[%clk 0:03:01.6]} 17. Ne2 {[%clk 0:02:36.7]} 17... Rfe8 {[%clk
0:02:53.8]} 18. Rc1 {[%clk 0:02:33.8]} 18... Ne4 {[%clk 0:02:46.7]} 19. Nd4
{[%clk 0:02:26.9]} 19... Ne5 {[%clk 0:02:37.5]} 20. Rc2 {[%clk 0:01:51.7]} 20...
Ba7 {[%clk 0:02:32.9]} 21. g3 {[%clk 0:01:43.2]} 21... f5 {[%clk 0:01:56.3]} 22.
Bg2 {[%clk 0:01:42]} 22... g5 {[%clk 0:01:56.1]} 23. Nxf5 {[%clk 0:01:30.5]}
23... Qe6 {[%clk 0:01:45]} 24. Nd4 {[%clk 0:01:27.2]} 24... Qf7 {[%clk
0:01:43.9]} 25. Kh2 {[%clk 0:01:20.1]} 25... Rf8 {[%clk 0:01:40.9]} 26. f4
{[%clk 0:01:15.6]} 26... gxf4 {[%clk 0:01:31.4]} 27. exf4 {[%clk 0:01:16.4]}
27... Qg6 {[%clk 0:01:13.6]} 28. Ne2 {[%clk 0:00:42.6]} 28... Nc6 {[%clk
0:00:35.9]} 29. Rf3 {[%clk 0:00:32]} 29... Rfe8 {[%clk 0:00:27.2]} 30. Nd4
{[%clk 0:00:29.5]} 30... Nxd4 {[%clk 0:00:13.9]} 31. Bxd4 {[%clk 0:00:31.4]}
31... Bb8 {[%clk 0:00:13.4]} 32. Qf1 {[%clk 0:00:13.8]} 32... Rc8 {[%clk
0:00:13.6]} 33. Rxc8 {[%clk 0:00:14.1]} 33... Rxc8 {[%clk 0:00:14.7]} 34. Be5
{[%clk 0:00:15]} 34... Nd2 {[%clk 0:00:12.4]} 35. Qe2 {[%clk 0:00:12.9]} 35...
Nxf3+ {[%clk 0:00:13.6]} 36. Qxf3 {[%clk 0:00:14.8]} 36... Bxe5 {[%clk
0:00:12.1]} 37. Qxd5+ {[%clk 0:00:16.3]} 37... Kh8 {[%clk 0:00:12.2]} 38. fxe5
{[%clk 0:00:16.4]} 38... Qc2 {[%clk 0:00:11.6]} 39. e6 {[%clk 0:00:12.3]} 39...
Re8 {[%clk 0:00:12.6]} 40. Qd7 {[%clk 0:00:09.3]} 40... Qg6 {[%clk 0:00:11.3]}
41. Bd5 {[%clk 0:00:08.8]} 41... b5 {[%clk 0:00:11.1]} 42. h4 {[%clk 0:00:08.3]}
42... Qc2+ {[%clk 0:00:11.1]} 43. Bg2 {[%clk 0:00:09.3]} 43... Qg6 {[%clk
0:00:11.9]} 44. Bd5 {[%clk 0:00:06.6]} 44... Qc2+ {[%clk 0:00:12.8]} 45. Bg2
{[%clk 0:00:05.2]} 45... Qg6 {[%clk 0:00:14]} 46. Qd5 {[%clk 0:00:06.6]} 46...
Rxe6 {[%clk 0:00:07.5]} 47. a4 {[%clk 0:00:07.3]} 47... bxa4 {[%clk 0:00:07.9]}
48. bxa4 {[%clk 0:00:09.2]} 48... Re7 {[%clk 0:00:04.6]} 49. Qa8+ {[%clk
0:00:08.9]} 49... Re8 {[%clk 0:00:05.7]} 50. Qd5 {[%clk 0:00:10.7]} 50... Re7
{[%clk 0:00:05.4]} 51. Qd8+ {[%clk 0:00:10.7]} 51... Re8 {[%clk 0:00:06.6]} 52.
Qd2 {[%clk 0:00:12.1]} 52... Qe6 {[%clk 0:00:05.8]} 53. a5 {[%clk 0:00:12.5]}
53... Qe2 {[%clk 0:00:05.5]} 54. Qd5 {[%clk 0:00:12.5]} 54... Qb5 {[%clk
0:00:05.6]} 55. Qd2 {[%clk 0:00:06.5]} 55... Re2 {[%clk 0:00:03.9]} 56. Qd8+
{[%clk 0:00:06.2]} 56... Kh7 {[%clk 0:00:05.2]} 57. Qd4 {[%clk 0:00:04.1]} 1-0

[Event "*** MasterClass Titled Tuesday Blitz"]
[Site "Chess.com"]
[Date "2017.10.03"]
[Round "5"]
[White "OparinGrigoriy"]
[Black "Krasimir_Rusev"]
[Result "1-0"]
[WhiteElo "2664"]
[BlackElo "2537"]
[TimeControl "180+2"]
[EndTime "14:08:34 PDT"]
[Termination "OparinGrigoriy won by resignation"]

1. e4 {[%clk 0:03:01.9]} 1... d6 {[%clk 0:03:01.2]} 2. d4 {[%clk 0:03:02.5]}
2... Nf6 {[%clk 0:03:02.7]} 3. Nc3 {[%clk 0:03:03.5]} 3... e5 {[%clk 0:03:04.2]}
4. Nf3 {[%clk 0:03:05]} 4... exd4 {[%clk 0:03:04.7]} 5. Nxd4 {[%clk 0:03:06.9]}
5... Be7 {[%clk 0:03:06.2]} 6. g3 {[%clk 0:03:08.4]} 6... O-O {[%clk 0:03:06.8]}
7. Bg2 {[%clk 0:03:10]} 7... Re8 {[%clk 0:03:08.4]} 8. O-O {[%clk 0:03:11.5]}
8... c6 {[%clk 0:03:09.9]} 9. h3 {[%clk 0:03:12.2]} 9... a5 {[%clk 0:03:10.3]}
10. a4 {[%clk 0:03:09.1]} 10... Na6 {[%clk 0:03:11.2]} 11. Re1 {[%clk
0:03:10.4]} 11... Nc5 {[%clk 0:03:10.5]} 12. g4 {[%clk 0:03:04.6]} 12... Bf8
{[%clk 0:03:10.6]} 13. Bg5 {[%clk 0:03:01.4]} 13... h6 {[%clk 0:02:52]} 14. Bh4
{[%clk 0:03:02.6]} 14... Be7 {[%clk 0:02:47.1]} 15. Bg3 {[%clk 0:03:00]} 15...
Qb6 {[%clk 0:02:43.9]} 16. Qd2 {[%clk 0:02:50.5]} 16... Bd7 {[%clk 0:02:41]} 17.
Rad1 {[%clk 0:02:44.6]} 17... Rad8 {[%clk 0:02:41.7]} 18. b3 {[%clk 0:02:45]}
18... Bc8 {[%clk 0:02:42.1]} 19. Kh2 {[%clk 0:02:45]} 19... Bf8 {[%clk
0:02:40.5]} 20. f3 {[%clk 0:02:35.5]} 20... Qb4 {[%clk 0:02:40.4]} 21. Nd5
{[%clk 0:02:27.3]} 21... cxd5 {[%clk 0:02:36.5]} 22. c3 {[%clk 0:02:17.2]} 22...
Qb6 {[%clk 0:02:36.5]} 23. exd5 {[%clk 0:02:17.9]} 23... Nxd5 {[%clk 0:02:16.6]}
24. Nb5 {[%clk 0:02:18.7]} 24... Nf6 {[%clk 0:02:13.7]} 25. Rxe8 {[%clk
0:02:17.1]} 25... Rxe8 {[%clk 0:02:12.7]} 26. Qc2 {[%clk 0:02:14.1]} 26... d5
{[%clk 0:01:48.1]} 27. b4 {[%clk 0:02:10.9]} 27... Na6 {[%clk 0:01:43.8]} 28.
bxa5 {[%clk 0:01:59.4]} 28... Qxa5 {[%clk 0:01:38.7]} 29. h4 {[%clk 0:02:00.9]}
29... g6 {[%clk 0:01:30.8]} 30. Rd4 {[%clk 0:01:40.4]} 30... Bd7 {[%clk
0:01:30.6]} 31. Rf4 {[%clk 0:01:39.8]} 31... Qd8 {[%clk 0:01:25.7]} 32. Qd2
{[%clk 0:01:34.9]} 32... Bxb5 {[%clk 0:01:15.7]} 33. axb5 {[%clk 0:01:36.8]}
33... Nc5 {[%clk 0:01:16.8]} 34. Qd4 {[%clk 0:01:32]} 34... Ncd7 {[%clk
0:01:08.3]} 35. c4 {[%clk 0:01:09.3]} 35... dxc4 {[%clk 0:01:05.8]} 36. Kh3
{[%clk 0:00:56.4]} 36... Re6 {[%clk 0:00:36.4]} 37. Bf1 {[%clk 0:00:51.8]} 37...
Bd6 {[%clk 0:00:33.1]} 38. Bxc4 {[%clk 0:00:50.2]} 38... Bxf4 {[%clk 0:00:31.4]}
39. Bxf4 {[%clk 0:00:50.3]} 39... Qb6 {[%clk 0:00:27.4]} 40. Qd3 {[%clk
0:00:48.2]} 40... Re1 {[%clk 0:00:25.3]} 41. Qxg6+ {[%clk 0:00:48.2]} 41... Kh8
{[%clk 0:00:26.2]} 42. Qxh6+ {[%clk 0:00:18.3]} 42... Nh7 {[%clk 0:00:27.2]} 43.
Qxb6 {[%clk 0:00:13.2]} 43... Nxb6 {[%clk 0:00:29.1]} 44. Bxf7 {[%clk
0:00:14.9]} 44... Kg7 {[%clk 0:00:26.3]} 45. Bb3 {[%clk 0:00:10.6]} 45... Rb1
{[%clk 0:00:26.6]} 46. Bc2 {[%clk 0:00:11.2]} 46... Rxb5 {[%clk 0:00:27.4]} 47.
g5 {[%clk 0:00:12.7]} 47... Nd7 {[%clk 0:00:21.7]} 48. Kg3 {[%clk 0:00:08.9]}
48... Rc5 {[%clk 0:00:21]} 49. Be4 {[%clk 0:00:08.6]} 49... b5 {[%clk
0:00:21.9]} 50. Be3 {[%clk 0:00:08.9]} 50... Rc4 {[%clk 0:00:17.9]} 51. h5
{[%clk 0:00:09.9]} 51... b4 {[%clk 0:00:15.3]} 52. h6+ {[%clk 0:00:10.9]} 52...
Kg8 {[%clk 0:00:16.7]} 53. Bd5+ {[%clk 0:00:11.7]} 53... Kf8 {[%clk 0:00:15.2]}
54. Bxc4 {[%clk 0:00:12.9]} 54... Ne5 {[%clk 0:00:16.2]} 55. Bb3 {[%clk
0:00:12.2]} 55... Ke7 {[%clk 0:00:13]} 56. f4 {[%clk 0:00:12.6]} 56... Nf7
{[%clk 0:00:12.2]} 57. g6 {[%clk 0:00:11.9]} 1-0